bitfinex-derivatives/quotes_BTCF0:USTF0_20250809
["timestamp","ask_amount","ask_price","bid_price","bid_amount"]
[1754739894998,0.02869,117290.0,117280.0,3.41776529]
[1754739895409,0.11394,117290.0,117280.0,3.41776529]
[1754739898107,0.02869,117290.0,117280.0,3.41776529]
[1754739898504,0.0037,117290.0,117280.0,3.31032961]
[1754739899101,0.1139401,117290.0,117280.0,3.31032961]
[1754739899307,0.1139401,117290.0,117280.0,3.41776529]
[1754739903908,0.2068701,117290.0,117280.0,1.89715775]
[1754739904114,0.2031701,117290.0,117280.0,2.27819457]
[1754739904316,0.2031701,117290.0,117280.0,2.68921937]
[1754739905521,0.1630301,117290.0,117280.0,2.68921937]
[1754739905823,0.2026201,117290.0,117280.0,2.68921937]
[1754739906015,0.2026201,117290.0,117280.0,2.60396207]
[1754739906411,0.2026201,117290.0,117280.0,1.50875183]
[1754739906412,0.82265034,117290.0,117280.0,1.50875183]
[1754739906621,0.82265034,117290.0,117280.0,2.32283183]
[1754739907016,0.82265034,117290.0,117280.0,2.58206207]
[1754739907523,0.5634201,117290.0,117280.0,2.58206207]
[1754739907715,0.5634201,117290.0,117280.0,2.58006207]
[1754739907914,0.5634201,117290.0,117280.0,2.58106207]
[1754739908115,0.5634201,117290.0,117280.0,2.77372602]
[1754739908314,0.5634201,117290.0,117280.0,2.70113872]
[1754739908519,0.5634201,117290.0,117280.0,2.59373207]
[1754739908825,0.7339481,117290.0,117280.0,2.32103183]
[1754739909023,0.6943581,117290.0,117280.0,2.58026207]
[1754739909322,0.7339481,117290.0,117280.0,2.58026207]
[1754739909725,0.99317834,117290.0,117280.0,2.32103183]
[1754739909925,1.29317834,117290.0,117280.0,2.32103183]
[1754739912131,1.29317834,117290.0,117280.0,2.06180159]
[1754739912435,1.29317834,117290.0,117280.0,2.32103183]
[1754739912626,1.29317834,117290.0,117280.0,0.01948149]
[1754739912825,1.29317834,117290.0,117280.0,0.70298169]
[1754739913032,1.29317834,117290.0,117280.0,0.63677599]
[1754739913626,1.29317834,117290.0,117280.0,0.7056163]
[1754739913931,1.29317834,117290.0,117280.0,0.96484654]
[1754739914130,1.29317834,117290.0,117280.0,0.7056163]
[1754739914531,1.29317834,117290.0,117280.0,0.96484654]
[1754739917739,1.29317834,117290.0,117280.0,0.7056163]
[1754739917928,1.29317834,117290.0,117280.0,0.96484654]
[1754739918130,1.29317834,117290.0,117280.0,0.7056163]
[1754739918332,1.0339481,117290.0,117280.0,0.96484654]
[1754739918531,1.29317834,117290.0,117280.0,0.96484654]
[1754739919744,1.29317834,117290.0,117280.0,0.7056163]
[1754739921140,1.0339481,117290.0,117280.0,0.7056163]
[1754739921335,1.29317834,117290.0,117280.0,0.7056163]
[1754739921639,1.0339481,117290.0,117280.0,0.7056163]
[1754739921836,1.29317834,117290.0,117280.0,1.04386654]
[1754739922041,1.29317834,117290.0,117280.0,1.05653654]
[1754739922634,1.29317834,117290.0,117280.0,1.04386654]
[1754739923032,1.0339481,117290.0,117280.0,0.99688654]
[1754739923234,1.29317834,117290.0,117280.0,0.96484654]
[1754739924249,1.0339481,117290.0,117280.0,0.96484654]
[1754739924439,1.29317834,117290.0,117280.0,0.96484654]
[1754739925141,1.29317834,117290.0,117280.0,0.99688654]
[1754739925847,1.0339481,117290.0,117280.0,0.99688654]
[1754739926036,1.29317834,117290.0,117280.0,0.99688654]
[1754739926237,1.29317834,117290.0,117280.0,0.7376563]
[1754739926436,1.29317834,117290.0,117280.0,0.99688654]
[1754739928145,1.0339481,117290.0,117280.0,0.99688654]
[1754739928346,1.29317834,117290.0,117280.0,0.36011055]
[1754739928644,1.29317834,117290.0,117280.0,1.18226055]
[1754739930147,1.29317834,117290.0,117280.0,1.16959055]
[1754739931045,1.29317834,117290.0,117280.0,1.13755055]
[1754739931641,1.29317834,117290.0,117280.0,1.18226055]
[1754739931840,1.29317834,117290.0,117280.0,1.11342024]
[1754739932346,1.0339481,117290.0,117280.0,1.11342024]
[1754739932548,1.29317834,117290.0,117280.0,1.11342024]
[1754739933251,1.0339481,117290.0,117280.0,1.11342024]
[1754739933452,1.29317834,117290.0,117280.0,1.11342024]
[1754739936851,1.65397834,117290.0,117280.0,1.11342024]
[1754739937655,1.48345034,117290.0,117280.0,1.11342024]
[1754739939453,1.48345034,117290.0,117280.0,0.90133]
[1754739939651,1.48345034,117290.0,117280.0,1.16056024]
[1754739941955,1.18345034,117290.0,117280.0,1.16056024]
[1754739942755,1.18345034,117290.0,117280.0,0.90133]
[1754739944655,0.2029873,117280.0,117270.0,0.06735234]
[1754739944963,1.08224778,117280.0,117270.0,0.8421]
[1754739946357,0.5637873,117280.0,117270.0,0.85577]
[1754739946557,0.82301754,117280.0,117270.0,0.92297227]
[1754739946855,0.82301754,117280.0,117270.0,0.87093]
[1754739947453,0.82301754,117280.0,117270.0,0.90291]
[1754739948155,0.82301754,117280.0,117270.0,0.89024]
[1754739948556,1.08224778,117280.0,117270.0,0.89024]
[1754739949360,1.08224778,117280.0,117270.0,0.90291]
[1754739949749,0.82301754,117280.0,117270.0,0.90291]
[1754739949960,0.82301754,117280.0,117270.0,1.16214024]
[1754739953657,0.82301754,117280.0,117270.0,0.90291]
[1754739953658,1.08224778,117280.0,117270.0,0.90291]
[1754739954348,1.03376778,117280.0,117270.0,0.001]
[1754739954553,0.0852864,117240.0,117230.0,0.27210904]
[1754739954753,0.4460864,117240.0,117230.0,1.51455582]
[1754739955163,0.4460864,117240.0,117230.0,1.62923797]
[1754739955356,0.4460864,117240.0,117230.0,1.52183132]
[1754739956564,0.4470864,117240.0,117230.0,1.26860108]
[1754739956763,0.4470864,117240.0,117230.0,1.27460108]
[1754739957564,0.4470864,117240.0,117230.0,1.35989498]
[1754739957771,0.4470864,117240.0,117230.0,1.61912522]
[1754739960471,0.0862864,117240.0,117230.0,1.61912522]
[1754739961458,0.1091064,117240.0,117230.0,1.72653187]
[1754739961663,0.4699064,117240.0,117230.0,1.72653187]
[1754739961968,0.1091064,117240.0,117230.0,1.72653187]
[1754739962666,0.4699064,117240.0,117230.0,1.72653187]
[1754739963365,0.1091064,117240.0,117230.0,1.72653187]
[1754739963565,0.4699064,117240.0,117230.0,1.72653187]
[1754739963963,0.1091064,117240.0,117230.0,1.72653187]
[1754739964764,0.1091064,117240.0,117230.0,1.61912522]
[1754739965264,0.0862864,117240.0,117230.0,1.61912522]
[1754739968068,0.1109364,117240.0,117230.0,1.61912522]
[1754739968369,0.2062064,117240.0,117230.0,1.61912522]
[1754739968668,0.1357964,117240.0,117230.0,1.61912522]
[1754739968863,0.1207064,117240.0,117230.0,1.61912522]
[1754739969064,0.1207064,117240.0,117230.0,1.53383132]
[1754739969275,0.1207064,117240.0,117230.0,1.01537084]
[1754739969466,0.1207064,117240.0,117230.0,1.53383132]
[1754739969665,0.1207064,117240.0,117230.0,1.61912522]
[1754739970367,0.1207064,117240.0,117230.0,1.46730163]
[1754739970572,0.1207064,117240.0,117230.0,1.72653187]
[1754739973574,0.1109364,117240.0,117230.0,1.72653187]
[1754739973770,0.0862864,117240.0,117230.0,1.72653187]
[1754739974571,0.0862864,117240.0,117230.0,1.61912522]
[1754739975475,0.1109364,117240.0,117230.0,1.64122701]
[1754739975670,0.75582664,117240.0,117230.0,0.57271677]
[1754739975970,1.08546688,117240.0,117230.0,0.16151084]
[1754739976278,1.08546688,117240.0,117230.0,0.97055084]
[1754739976466,1.08546688,117240.0,117230.0,1.07026784]
[1754739977074,1.08546688,117240.0,117230.0,0.99770784]
[1754739977266,1.08546688,117240.0,117230.0,0.99170784]
[1754739977464,1.08546688,117240.0,117230.0,0.95884569]
[1754739977765,1.08546688,117240.0,117230.0,1.01882569]
[1754739979279,1.08546688,117240.0,117230.0,1.01582569]
[1754739981472,0.82623664,117240.0,117230.0,1.27505593]
[1754739981773,0.4965964,117240.0,117230.0,1.29874593]
[1754739981962,0.4965964,117240.0,117230.0,1.03951569]
[1754739982167,0.5670064,117240.0,117230.0,1.29874593]
[1754739984575,0.82623664,117240.0,117230.0,1.29874593]
[1754739984774,0.82623664,117240.0,117230.0,1.03951569]
[1754739985077,0.82623664,117240.0,117230.0,1.29874593]
[1754739986474,0.5670064,117240.0,117230.0,0.94691569]
[1754739986675,0.91300531,117240.0,117230.0,0.92143569]
[1754739987775,0.91300531,117240.0,117230.0,0.81404]
[1754739987975,0.91300531,117240.0,117230.0,0.7840817]
[1754739988578,0.91300531,117240.0,117230.0,0.92119569]
[1754739989176,0.91300531,117240.0,117230.0,0.88917829]
[1754739991380,0.92116818,117240.0,117230.0,0.7246026]
[1754739991582,0.92116818,117240.0,117230.0,0.6729246]
[1754739991783,0.92116818,117240.0,117230.0,0.5767344]
[1754739991985,0.1334732,117230.0,117220.0,0.89044]
[1754739992185,0.91201211,117230.0,117220.0,0.90311]
[1754739993180,0.91201211,117230.0,117220.0,0.09439]
[1754739993379,0.91201211,117230.0,117220.0,0.90507]
[1754739994284,0.91301211,117230.0,117220.0,0.90707]
[1754739996088,0.5670132,117230.0,117220.0,0.90707]
[1754739996388,0.91301211,117230.0,117220.0,0.90707]
[1754739996583,0.91301211,117230.0,117220.0,0.8944]
[1754739996789,0.91301211,117230.0,117220.0,0.90707]
[1754739996976,0.91301211,117230.0,117220.0,0.86126]
[1754739997181,0.91301211,117230.0,117220.0,0.90757]
[1754739997383,0.91301211,117230.0,117220.0,0.81268]
[1754739997589,0.91301211,117230.0,117220.0,0.84632]
[1754739997791,0.91301211,117230.0,117220.0,0.90757]
[1754740000093,0.91301211,117230.0,117220.0,0.93185]
[1754740000593,0.5670132,117230.0,117220.0,0.93185]
[1754740000892,0.91301211,117230.0,117220.0,0.93185]
[1754740003193,0.5670132,117230.0,117220.0,0.93185]
[1754740003493,0.91301211,117230.0,117220.0,0.93185]
[1754740004789,0.91301211,117230.0,117220.0,0.90757]
[1754740005692,0.0853125,117210.0,117200.0,0.08222]
[1754740005994,1.27195141,117210.0,117200.0,0.94175843]
[1754740006395,0.9259525,117210.0,117200.0,0.94175843]
[1754740006891,0.9259525,117210.0,117200.0,0.93369]
[1754740007395,0.9269525,117210.0,117200.0,0.93869]
[1754740008099,0.9259525,117210.0,117200.0,0.94312349]
[1754740009693,0.9259525,117210.0,117200.0,0.93469]
[1754740009895,0.9259525,117210.0,117190.0,0.41344509]
[1754740009896,0.1084326,117190.0,117180.0,1.25023]
[1754740010091,0.1084326,117190.0,117180.0,2.06471]
[1754740010092,0.4692326,117190.0,117180.0,2.06471]
[1754740010397,0.4692326,117190.0,117180.0,2.41070891]
[1754740010598,0.4692326,117190.0,117180.0,2.41902225]
[1754740011396,0.4471226,117190.0,117180.0,2.07402334]
[1754740011601,0.4702326,117190.0,117180.0,2.42002225]
[1754740011798,0.4702326,117190.0,117180.0,2.48667558]
[1754740012400,0.4712326,117190.0,117180.0,2.48667558]
[1754740013803,0.4712326,117190.0,117180.0,2.14067667]
[1754740013998,0.5190626,117190.0,117180.0,2.48667558]
[1754740014304,0.5526226,117190.0,117180.0,2.14067667]
[1754740014495,0.5526226,117190.0,117180.0,2.48667558]
[1754740014695,0.5526226,117190.0,117180.0,2.57200548]
[1754740014899,0.5526226,117190.0,117180.0,2.22600657]
[1754740015202,0.5526226,117190.0,117180.0,2.57200548]
[1754740015503,0.5526226,117190.0,117180.0,2.22600657]
[1754740015702,0.5526226,117190.0,117180.0,2.57200548]
[1754740017807,0.5526226,117190.0,117180.0,2.22600657]
[1754740018107,0.5526226,117190.0,117180.0,2.57200548]
[1754740018800,0.5671626,117190.0,117180.0,2.57200548]
[1754740019201,0.5671626,117190.0,117180.0,2.56369214]
[1754740020203,0.5671626,117190.0,117180.0,2.47836224]
[1754740020506,0.5671626,117190.0,117180.0,2.56369214]
[1754740020706,0.82681921,117190.0,117180.0,2.47734984]
[1754740020908,0.82681921,117190.0,117180.0,2.73700645]
[1754740023609,0.82681921,117190.0,117180.0,2.47734984]
[1754740024110,0.5671626,117190.0,117180.0,2.47734984]
[1754740024502,0.82681921,117190.0,117180.0,2.21769323]
[1754740024698,0.4481226,117190.0,117180.0,2.47734984]
[1754740024897,0.4709226,117190.0,117180.0,2.73700645]
[1754740025807,0.4481226,117190.0,117180.0,2.73700645]
[1754740026008,0.4481226,117190.0,117180.0,3.35746306]
[1754740026009,0.002,117190.0,117180.0,3.35746306]
[1754740026311,0.2559584,117200.0,117190.0,0.1057326]
[1754740026507,0.2559584,117200.0,117190.0,0.62504582]
[1754740026911,0.1706369,117200.0,117190.0,0.98584582]
[1754740027302,0.1599669,117200.0,117190.0,0.98584582]
[1754740027705,0.1619669,117200.0,117190.0,0.98584582]
[1754740028608,0.1629669,117200.0,117190.0,0.81355066]
[1754740028813,0.1609669,117200.0,117190.0,0.81655066]
[1754740029613,0.001,117200.0,117190.0,0.81655066]
[1754740030002,0.0863153,117200.0,117190.0,0.81655066]
[1754740031014,0.001,117200.0,117190.0,0.81655066]
[1754740031315,0.001,117200.0,117190.0,0.98720666]
[1754740031316,0.0863153,117200.0,117190.0,0.98720666]
[1754740032211,0.1091153,117200.0,117190.0,0.62640666]
[1754740032410,0.1091153,117200.0,117190.0,0.98720666]
[1754740032813,0.0863153,117200.0,117190.0,0.98720666]
[1754740033616,0.0863153,117200.0,117190.0,0.81655066]
[1754740033816,0.001,117200.0,117190.0,0.81655066]
[1754740034617,0.001,117200.0,117190.0,1.16256872]
[1754740034922,0.001,117200.0,117190.0,1.33322472]
[1754740035122,0.001,117200.0,117190.0,1.35079306]
[1754740035823,0.001,117200.0,117190.0,1.45793445]
[1754740038624,0.001,117200.0,117190.0,1.35079306]
[1754740040329,0.001,117200.0,117190.0,1.45802217]
[1754740040721,0.001,117200.0,117190.0,1.35079306]
[1754740041820,0.001,117200.0,117190.0,1.45800688]
[1754740045129,0.001,117200.0,117190.0,0.76597076]
[1754740045331,0.001,117200.0,117190.0,1.45800688]
[1754740047326,0.001,117200.0,117190.0,1.35079306]
[1754740049134,0.2169586,117220.0,117210.0,0.0853078]
[1754740049135,0.3879827,117220.0,117210.0,0.0853078]
[1754740049335,0.4571327,117220.0,117210.0,1.60060586]
[1754740049637,0.3035555,117220.0,117210.0,1.60060586]
[1754740049833,0.1934086,117220.0,117210.0,1.60060586]
[1754740050338,0.2875186,117220.0,117210.0,1.60160586]
[1754740050537,0.2885186,117220.0,117210.0,1.60977767]
[1754740051430,0.2875186,117220.0,117210.0,1.60977767]
[1754740051736,0.2865186,117220.0,117210.0,1.60977767]
[1754740051933,0.2875186,117220.0,117210.0,1.61177767]
[1754740054437,0.2875186,117220.0,117210.0,1.71898025]
[1754740056037,0.2875186,117220.0,117210.0,1.25097767]
[1754740056440,0.2875186,117220.0,117210.0,1.35818025]
[1754740057638,0.2875186,117220.0,117210.0,1.25097767]
[1754740058940,0.2875186,117220.0,117210.0,1.35818025]
[1754740059238,0.2875186,117220.0,117210.0,1.25097767]
[1754740059840,0.2887286,117220.0,117210.0,1.25097767]
[1754740060641,0.2887286,117220.0,117210.0,1.35818025]
[1754740065451,0.2505886,117220.0,117210.0,1.35818025]
[1754740066147,0.2896886,117220.0,117210.0,1.35818025]
[1754740068146,0.2896886,117220.0,117210.0,1.25097767]
[1754740069941,0.2896886,117220.0,117210.0,1.25045767]
[1754740071653,0.2896886,117220.0,117210.0,0.44249767]
[1754740071849,0.2896886,117220.0,117210.0,1.25037767]
[1754740074755,0.2896886,117220.0,117210.0,1.42330305]
[1754740075355,0.2896886,117220.0,117210.0,0.90435961]
[1754740075550,0.2896886,117220.0,117210.0,1.42330305]
[1754740076246,0.2896886,117220.0,117210.0,1.18572611]
[1754740076648,0.2896886,117220.0,117210.0,1.07852353]
[1754740077053,0.54916032,117220.0,117210.0,1.07852353]
[1754740077255,0.2896886,117220.0,117210.0,1.07852353]
[1754740077651,0.2896886,117220.0,117210.0,0.81905181]
[1754740077855,0.6504886,117220.0,117210.0,1.07852353]
[1754740078060,0.6504886,117220.0,117210.0,0.81905181]
[1754740078249,0.6504886,117220.0,117210.0,1.07852353]
[1754740078555,0.90996032,117220.0,117210.0,1.07836353]
[1754740078755,0.90996032,117220.0,117210.0,0.01117181]
[1754740078957,0.90996032,117220.0,117210.0,0.81885181]
[1754740079352,0.90996032,117220.0,117210.0,1.07832353]
[1754740080258,0.6504886,117220.0,117210.0,1.07832353]
[1754740080458,0.90996032,117220.0,117210.0,1.07832353]
[1754740081650,0.90996032,117220.0,117190.0,0.27353054]
[1754740081651,0.1097722,117190.0,117180.0,0.08020258]
[1754740081850,1.09084392,117190.0,117180.0,1.1855943]
[1754740082157,1.09084392,117190.0,117180.0,1.2442943]
[1754740082352,0.8313722,117190.0,117180.0,1.45471232]
[1754740082752,0.8323722,117190.0,117180.0,1.45571232]
[1754740082957,0.8323722,117190.0,117180.0,1.1962406]
[1754740083259,0.8323722,117190.0,117180.0,0.94176888]
[1754740083458,0.8323722,117190.0,117180.0,1.2012406]
[1754740083855,0.8343722,117190.0,117180.0,1.1962406]
[1754740084050,1.09284392,117190.0,117180.0,1.1952406]
[1754740084254,1.09484392,117190.0,117180.0,0.93576888]
[1754740084456,1.09484392,117190.0,117180.0,1.1952406]
[1754740084658,1.18161243,117190.0,117180.0,0.93576888]
[1754740084958,0.8353722,117190.0,117180.0,0.93576888]
[1754740085960,0.4745722,117190.0,117180.0,0.93576888]
[1754740086857,0.4745722,117190.0,117180.0,0.93534888]
[1754740087763,0.82081243,117190.0,117180.0,0.93534888]
[1754740089170,0.4745722,117190.0,117180.0,0.93534888]
[1754740090070,0.82081243,117190.0,117180.0,0.93534888]
[1754740093770,1.18161243,117190.0,117180.0,0.92077888]
[1754740093969,1.18161243,117190.0,117180.0,0.83048]
[1754740095069,1.18161243,117190.0,117180.0,0.90062]
[1754740099177,0.8353722,117190.0,117180.0,0.90062]
[1754740099378,1.18161243,117190.0,117180.0,0.83048]
[1754740099985,1.18161243,117190.0,117180.0,0.90062]
[1754740101773,1.18161243,117190.0,117180.0,0.84602]
[1754740101978,1.18161243,117190.0,117180.0,0.90062]
[1754740103279,0.8353722,117190.0,117180.0,0.90062]
[1754740103481,1.18161243,117190.0,117180.0,0.90062]
[1754740103883,0.8353722,117190.0,117180.0,0.90062]
[1754740104083,1.18161243,117190.0,117180.0,0.9251]
[1754740105984,1.20426243,117190.0,117180.0,0.08005]
[1754740106184,1.20426243,117190.0,117180.0,0.88913]
[1754740106785,1.20426243,117190.0,117180.0,0.9037]
[1754740107083,0.8742422,117190.0,117180.0,0.9037]
[1754740107486,1.19783243,117190.0,117180.0,0.9037]
[1754740107987,1.19783243,117190.0,117180.0,0.92825]
[1754740108193,1.22048243,117190.0,117180.0,0.92825]
[1754740108794,1.39369636,117190.0,117180.0,0.92825]
[1754740108995,1.13396928,117190.0,117180.0,0.92825]
[1754740110694,1.28827798,117190.0,117180.0,0.92825]
[1754740113193,0.94199551,117190.0,117180.0,0.92825]
[1754740113386,1.28827798,117190.0,117180.0,0.92825]
[1754740115601,1.22052467,117190.0,117180.0,0.92825]
[1754740118297,1.22052467,117190.0,117180.0,0.11917]
[1754740119504,0.8742422,117190.0,117180.0,0.11917]
[1754740119697,1.22052467,117190.0,117180.0,0.11917]
[1754740120506,1.22052467,117190.0,117180.0,0.1046]
[1754740121302,1.22052467,117190.0,117180.0,0.09469]
[1754740122603,1.22052467,117190.0,117180.0,0.10918]
[1754740123603,1.19814467,117190.0,117180.0,0.11747]
[1754740124100,1.22114467,117190.0,117180.0,0.11747]
[1754740124805,0.8748622,117190.0,117180.0,0.11747]
[1754740125104,1.22114467,117190.0,117180.0,0.11747]
[1754740126500,0.8748622,117190.0,117180.0,0.11747]
[1754740126798,1.22114467,117190.0,117180.0,0.11747]
[1754740127707,0.8748622,117190.0,117180.0,0.11747]
[1754740127902,1.22114467,117190.0,117180.0,0.11747]
[1754740129403,0.8748622,117190.0,117180.0,0.11747]
[1754740129706,1.22114467,117190.0,117180.0,0.11747]
[1754740130707,1.13456692,117190.0,117180.0,0.11747]
[1754740133210,0.8748622,117190.0,117180.0,0.11747]
[1754740133398,1.13456692,117190.0,117180.0,0.11747]
[1754740134514,0.8748622,117190.0,117180.0,0.11747]
[1754740134706,1.13456692,117190.0,117180.0,0.11747]
[1754740134907,1.13546692,117190.0,117180.0,0.11837]
[1754740135514,1.13456692,117190.0,117180.0,0.11747]
[1754740137415,1.13456692,117190.0,117180.0,0.10298]
[1754740141410,1.13456692,117190.0,117180.0,0.09383]
[1754740143320,0.8748622,117190.0,117180.0,0.09383]
[1754740143615,0.1262697,117180.0,117170.0,0.95119238]
[1754740143821,0.74677442,117180.0,117170.0,1.2108971]
[1754740144221,0.74677442,117180.0,117170.0,0.95119238]
[1754740144422,0.74677442,117180.0,117170.0,1.2108971]
[1754740145017,0.74777442,117180.0,117170.0,1.2108971]
[1754740146023,0.74877442,117180.0,117170.0,1.2108971]
[1754740149626,0.4890697,117180.0,117170.0,1.2108971]
[1754740149821,0.74877442,117180.0,117170.0,1.2108971]
[1754740150219,0.74877442,117180.0,117170.0,0.95119238]
[1754740150417,0.74877442,117180.0,117170.0,1.2108971]
[1754740151025,0.4890697,117180.0,117170.0,1.2108971]
[1754740151220,0.74877442,117180.0,117170.0,1.2108971]
[1754740152725,0.74877442,117180.0,117170.0,0.95119238]
[1754740152925,0.74877442,117180.0,117170.0,1.2108971]
[1754740153329,0.74877442,117180.0,117170.0,0.95119238]
[1754740153528,0.74877442,117180.0,117170.0,1.2108971]
[1754740153731,1.03147914,117180.0,117170.0,0.92695238]
[1754740153925,1.03147914,117180.0,117170.0,0.95134238]
[1754740154236,1.03147914,117180.0,117170.0,0.93420481]
[1754740156429,1.03147914,117180.0,117170.0,1.19390953]
[1754740156631,1.00847914,117180.0,117170.0,1.19390953]
[1754740157934,0.4890697,117180.0,117170.0,1.19390953]
[1754740158134,1.00847914,117180.0,117170.0,1.19390953]
[1754740158632,1.03147914,117180.0,117170.0,1.19390953]
[1754740159432,1.03147914,117180.0,117170.0,0.93420481]
[1754740159633,1.03147914,117180.0,117170.0,0.87873481]
[1754740159832,1.03147914,117180.0,117170.0,0.91042481]
[1754740160034,1.03147914,117180.0,117170.0,0.03266481]
[1754740160329,1.03147914,117180.0,117170.0,0.83970481]
[1754740160830,1.03147914,117180.0,117170.0,0.86313]
[1754740161535,1.03147914,117180.0,117170.0,0.80704]
[1754740161829,1.03147914,117180.0,117170.0,0.86313]
[1754740162030,1.03147914,117180.0,117170.0,0.90251]
[1754740165037,0.5120697,117180.0,117170.0,0.90251]
[1754740165237,1.03147914,117180.0,117170.0,0.90251]
[1754740165739,1.03147914,117180.0,117170.0,0.91741]
[1754740166131,1.03147914,117180.0,117170.0,0.9269]
[1754740170735,0.74877442,117180.0,117170.0,1.18660472]
[1754740170943,0.74877442,117180.0,117170.0,1.27194172]
[1754740172437,0.4481297,117180.0,117170.0,1.27194172]
[1754740172639,0.0873297,117180.0,117170.0,1.53164644]
[1754740172839,0.0873297,117180.0,117170.0,1.27194172]
[1754740174741,0.0873297,117180.0,117170.0,1.012237]
[1754740174947,0.0873297,117180.0,117170.0,1.27194172]
[1754740175547,0.0873297,117180.0,117170.0,1.012237]
[1754740175747,0.0873297,117180.0,117170.0,1.27194172]
[1754740176243,0.0873297,117180.0,117170.0,1.012237]
[1754740176445,0.0873297,117180.0,117170.0,1.27194172]
[1754740176639,0.37054442,117180.0,117170.0,1.27194172]
[1754740179146,0.38660442,117180.0,117170.0,1.27194172]
[1754740179653,0.1268997,117180.0,117170.0,1.27194172]
[1754740179851,0.38660442,117180.0,117170.0,1.012237]
[1754740180149,0.38660442,117180.0,117170.0,1.27194172]
[1754740181052,0.38660442,117180.0,117170.0,1.012237]
[1754740181254,0.38660442,117180.0,117170.0,1.27194172]
[1754740181757,0.74775442,117180.0,117170.0,1.27117172]
[1754740182053,1.03045914,117180.0,117170.0,1.27117172]
[1754740182351,1.03045914,117180.0,117170.0,1.011467]
[1754740182549,0.74775442,117180.0,117170.0,1.27117172]
[1754740182954,0.77075442,117180.0,117170.0,1.27117172]
[1754740184757,0.74775442,117180.0,117170.0,1.27117172]
[1754740185556,0.0873297,117180.0,117170.0,1.27117172]
[1754740188462,0.0873297,117180.0,117170.0,1.011467]
[1754740188657,0.0873297,117180.0,117170.0,1.27117172]
[1754740188851,0.35641442,117180.0,117170.0,1.27117172]
[1754740189672,0.0967097,117180.0,117170.0,1.27117172]
[1754740189973,0.0873297,117180.0,117170.0,1.27117172]
[1754740191072,0.0873297,117180.0,117170.0,1.011467]
[1754740191270,0.0873297,117180.0,117170.0,1.27117172]
[1754740191771,0.0873297,117180.0,117170.0,1.011467]
[1754740191972,0.0873297,117180.0,117170.0,1.27117172]
[1754740192473,0.0873297,117180.0,117170.0,1.53087644]
[1754740192765,0.0873297,117180.0,117170.0,1.27117172]
[1754740193373,0.0873297,117180.0,117170.0,1.53087644]
[1754740193872,0.0873297,117180.0,117170.0,1.27117172]
[1754740200173,0.0523297,117180.0,117170.0,1.53087644]
[1754740200373,0.0523297,117180.0,117170.0,1.63813801]
[1754740202176,0.002,117180.0,117170.0,1.99893801]
[1754740202372,0.2559781,117190.0,117180.0,0.2044195]
[1754740202579,0.0853222,117190.0,117180.0,1.68564046]
[1754740202779,0.0853222,117190.0,117180.0,1.72061203]
[1754740202976,0.0853222,117190.0,117180.0,1.46090731]
[1754740203477,0.0853222,117190.0,117180.0,1.53319731]
[1754740203678,0.0873222,117190.0,117180.0,1.53319731]
[1754740204179,0.0853159,117200.0,117190.0,0.1321222]
[1754740204479,0.0853159,117200.0,117190.0,1.89062164]
[1754740205179,0.0863159,117200.0,117190.0,1.89062164]
[1754740206782,0.0863159,117200.0,117190.0,1.71726272]
[1754740207283,0.345955,117210.0,117190.0,1.97522452]
[1754740207581,0.345955,117210.0,117200.0,0.54920542]
[1754740208975,0.345955,117210.0,117200.0,0.55020542]
[1754740209284,0.346955,117210.0,117200.0,0.55020542]
[1754740210181,0.2616411,117210.0,117200.0,0.55120542]
[1754740210495,0.0910076,117210.0,117200.0,1.25805594]
[1754740210985,0.0910076,117210.0,117200.0,0.91200542]
[1754740211385,0.0910076,117210.0,117200.0,1.25805594]
[1754740211681,0.0910076,117210.0,117200.0,0.91200542]
[1754740214986,0.0863076,117210.0,117200.0,0.91200542]
[1754740215188,0.0863076,117210.0,117200.0,1.25805594]
[1754740215890,0.0863076,117210.0,117200.0,0.91200542]
[1754740216092,0.0863076,117210.0,117200.0,1.25805594]
[1754740220893,0.0863076,117210.0,117200.0,0.91200542]
[1754740221191,0.2046876,117210.0,117200.0,0.91200542]
[1754740221596,0.2046876,117210.0,117200.0,0.2051549]
[1754740221795,0.91153812,117210.0,117200.0,0.04833]
[1754740222095,0.91153812,117210.0,117200.0,0.8074]
[1754740222988,0.5654876,117210.0,117200.0,0.8074]
[1754740225086,0.91153812,117210.0,117200.0,0.8074]
[1754740228998,0.91153812,117210.0,117200.0,0.83094]
[1754740229197,0.91153812,117210.0,117200.0,0.86437]
[1754740232095,0.91153812,117210.0,117200.0,0.8796]
[1754740232595,0.91153812,117210.0,117200.0,0.8074]
[1754740232794,0.7361276,117210.0,117200.0,0.8074]
[1754740232983,1.08217812,117210.0,117200.0,0.002]
[1754740233592,0.91153812,117210.0,117200.0,0.002]
[1754740241801,1.27233812,117210.0,117200.0,0.002]
[1754740244101,0.9262876,117210.0,117200.0,0.06466]
[1754740244402,1.27233812,117210.0,117200.0,0.09684]
[1754740245105,1.27233812,117210.0,117200.0,0.04099]
[1754740245608,1.27233812,117210.0,117200.0,0.01778]
[1754740246200,1.27233812,117210.0,117200.0,0.46627052]
[1754740246201,0.9262876,117210.0,117200.0,0.46627052]
[1754740246704,0.9262876,117210.0,117200.0,0.12022]
[1754740249406,0.5654876,117210.0,117200.0,0.12022]
[1754740254606,0.82507704,117210.0,117200.0,0.37980944]
[1754740256210,0.5654876,117210.0,117200.0,0.32395944]
[1754740256511,0.82507704,117210.0,117200.0,0.37980944]
[1754740259997,0.82507704,117210.0,117200.0,0.63939888]
[1754740260610,0.82507704,117210.0,117200.0,0.37980944]
[1754740261015,0.5654876,117210.0,117200.0,0.63939888]
[1754740261210,0.5654876,117210.0,117200.0,0.37980944]
[1754740261613,0.82507704,117210.0,117200.0,0.37980944]
[1754740262212,0.5654876,117210.0,117200.0,0.37980944]
[1754740262807,0.82507704,117210.0,117200.0,0.37980944]
[1754740263110,0.5654876,117210.0,117200.0,0.37980944]
[1754740263312,0.5083976,117210.0,117200.0,0.72471378]
[1754740263512,0.5665676,117210.0,117200.0,0.72471378]
[1754740264310,0.1330176,117210.0,117200.0,0.72471378]
[1754740264807,0.0863076,117210.0,117200.0,0.72471378]
[1754740268009,0.0863076,117210.0,117200.0,1.08551378]
[1754740268713,0.0863076,117210.0,117200.0,0.91235098]
[1754740268914,0.0863076,117210.0,117200.0,0.55155098]
[1754740269713,0.0863076,117210.0,117200.0,0.91235098]
[1754740269913,0.0863076,117210.0,117200.0,0.55155098]
[1754740270815,0.0863076,117210.0,117200.0,0.91235098]
[1754740272221,0.0863076,117210.0,117200.0,0.2055349]
[1754740272420,0.0863076,117210.0,117200.0,0.5663349]
[1754740272719,0.0863076,117210.0,117200.0,0.91235098]
[1754740274314,0.0863076,117210.0,117200.0,0.55155098]
[1754740277517,0.2037676,117210.0,117200.0,0.2055349]
[1754740277720,0.1337276,117210.0,117200.0,0.55155098]
[1754740277922,0.91058368,117210.0,117200.0,0.90848]
[1754740278123,0.91058368,117210.0,117200.0,0.002]